bitfinex/quotes_BTCUSD_20250903
["timestamp","ask_amount","ask_price","bid_price","bid_amount"]
[1756922763934,0.53772742,112550.0,112540.0,0.01329]
[1756922764124,0.17983179,112550.0,112540.0,0.01329]
[1756922764341,0.182085,112550.0,112540.0,0.01329]
[1756922764553,0.182085,112550.0,112540.0,0.19100459]
[1756922764764,0.00212456,112550.0,112540.0,0.19100459]
[1756922764970,0.36014475,112550.0,112540.0,0.19100459]
[1756922765144,0.53784355,112550.0,112540.0,0.19100459]
[1756922765391,0.00112456,112550.0,112540.0,0.18700459]
[1756922765800,0.36139796,112550.0,112540.0,0.19000459]
[1756922766007,0.35914475,112550.0,112540.0,0.19000459]
[1756922767805,0.00112456,112550.0,112540.0,0.63994077]
[1756922768260,0.00112456,112550.0,112540.0,1.01889978]
[1756922768493,0.00112456,112550.0,112540.0,0.66087959]
[1756922768723,0.00112456,112550.0,112540.0,1.35889978]
[1756922768948,0.00112456,112550.0,112540.0,1.74137997]
[1756922769386,0.56234412,112600.0,112590.0,0.17763566]
[1756922769637,0.25115331,112610.0,112600.0,0.17761989]
[1756922769857,0.25115331,112610.0,112600.0,0.18292989]
[1756922770076,0.25127814,112610.0,112600.0,0.00531]
[1756922770298,0.17773183,112610.0,112600.0,0.00531]
[1756922770515,0.17998504,112610.0,112600.0,0.00531]
[1756922771151,0.18098504,112610.0,112600.0,0.00831]
[1756922771301,0.64744971,112610.0,112600.0,0.00831]
[1756922771501,0.6451965,112610.0,112600.0,0.18592989]
[1756922771947,0.6451965,112610.0,112600.0,0.00831]
[1756922772127,0.6451965,112610.0,112600.0,0.15859]
[1756922772671,0.6471465,112610.0,112600.0,0.00831]
[1756922772922,0.6481465,112610.0,112600.0,0.15859]
[1756922773430,0.6461965,112610.0,112600.0,0.33620989]
[1756922774603,0.6461965,112610.0,112600.0,0.15859]
[1756922775073,0.6461965,112610.0,112600.0,0.33620989]
[1756922775208,0.6461965,112610.0,112600.0,0.15859]
[1756922775636,0.6461965,112610.0,112600.0,0.33620989]
[1756922775841,0.4685895,112610.0,112600.0,0.33620989]
[1756922776040,0.00212483,112610.0,112600.0,0.42812588]
[1756922776251,0.00437804,112610.0,112600.0,0.27784588]
[1756922776447,0.00437804,112610.0,112600.0,0.42812588]
[1756922776877,0.00212483,112610.0,112600.0,0.42812588]
[1756922777124,0.00212483,112610.0,112600.0,0.39850093]
[1756922777302,0.00212483,112610.0,112600.0,0.80059093]
[1756922777688,0.00437804,112610.0,112600.0,0.80059093]
[1756922778879,0.00212483,112610.0,112600.0,0.80059093]
[1756922779217,0.00212483,112610.0,112600.0,0.80352093]
[1756922779921,0.00437804,112610.0,112600.0,0.80352093]
[1756922780296,0.00437804,112610.0,112600.0,0.40352093]
[1756922780852,0.00437804,112610.0,112600.0,0.80352093]
[1756922781027,0.00437804,112610.0,112600.0,0.65328093]
[1756922781229,0.18692216,112610.0,112600.0,0.80055093]
[1756922781442,0.18466895,112610.0,112600.0,0.80055093]
[1756922781614,0.18466895,112610.0,112600.0,0.81977588]
[1756922781828,0.00407483,112610.0,112600.0,0.42186588]
[1756922782041,0.00437804,112610.0,112600.0,0.42186588]
[1756922782220,0.18198216,112610.0,112600.0,0.27162588]
[1756922782417,0.18692216,112610.0,112600.0,0.09400599]
[1756922782735,0.18167895,112610.0,112600.0,0.42186588]
[1756922782967,0.00437804,112610.0,112600.0,0.42186588]
[1756922784909,0.00437804,112610.0,112600.0,0.42483588]
[1756922785112,0.00212483,112610.0,112600.0,0.42483588]
[1756922785602,0.00212483,112610.0,112600.0,0.42186588]
[1756922785800,0.00212483,112610.0,112600.0,0.82186588]
[1756922787030,0.00212483,112610.0,112600.0,0.82483588]
[1756922788034,0.00212483,112610.0,112600.0,0.82186588]
[1756922788602,0.00437804,112610.0,112600.0,0.82186588]
[1756922789431,0.00212483,112610.0,112600.0,1.47817559]
[1756922790132,0.00212483,112610.0,112600.0,0.82483588]
[1756922790347,0.00212483,112610.0,112600.0,1.47817559]
[1756922791672,0.00212483,112610.0,112600.0,1.30226551]
[1756922795849,0.00212483,112610.0,112600.0,1.29929551]
[1756922797399,0.00212483,112610.0,112600.0,1.30226551]
[1756922798326,0.00212483,112610.0,112600.0,1.36594282]
[1756922798532,0.00012483,112610.0,112600.0,1.36594282]
[1756922798732,0.00112483,112610.0,112600.0,1.36894282]
[1756922798933,0.00112483,112610.0,112600.0,0.89151319]
[1756922799131,0.00112483,112610.0,112600.0,1.36894282]
[1756922799507,0.00296,112650.0,112640.0,0.17755681]
[1756922799731,0.00511475,112650.0,112640.0,0.32771681]
[1756922799903,0.00511475,112650.0,112640.0,0.32987681]
[1756922800136,0.00511475,112650.0,112640.0,0.72987681]
[1756922800341,0.00511475,112650.0,112640.0,1.20730644]
[1756922800555,0.00215475,112650.0,112640.0,1.20730644]
[1756922801722,0.00012475,112650.0,112640.0,1.30022243]
[1756922801935,0.00012475,112650.0,112640.0,1.30319243]
[1756922801936,0.00712475,112650.0,112640.0,1.30319243]
[1756922802143,0.00912475,112650.0,112640.0,1.30319243]
[1756922802545,0.00212475,112650.0,112640.0,1.30219243]
[1756922802950,0.00312475,112650.0,112640.0,1.30319243]
[1756922803474,0.00312475,112650.0,112640.0,1.30519243]
[1756922807689,0.00312475,112650.0,112640.0,1.30515243]
[1756922807893,0.00312475,112650.0,112640.0,1.30218243]
[1756922808442,0.00312475,112650.0,112640.0,1.15206243]
[1756922808647,0.00312475,112650.0,112640.0,1.30218243]
[1756922812641,0.00312475,112650.0,112640.0,0.8247528]
[1756922812839,0.00312475,112650.0,112640.0,1.30218243]
[1756922814610,0.00312475,112650.0,112640.0,1.15206243]
[1756922814814,0.00312475,112650.0,112640.0,1.30214243]
[1756922816255,0.00312475,112650.0,112640.0,1.15206243]
[1756922816464,0.00312475,112650.0,112640.0,1.30214243]
[1756922817017,0.00312475,112650.0,112640.0,0.8247128]
[1756922817714,0.00608475,112650.0,112640.0,0.8247128]
[1756922818858,0.00312475,112650.0,112640.0,0.8247128]
[1756922820095,0.00312475,112650.0,112640.0,1.30214243]
[1756922820393,0.00312475,112650.0,112640.0,0.8247128]
[1756922820632,0.00312475,112650.0,112640.0,1.30214243]
[1756922822044,0.00312475,112650.0,112640.0,0.8247128]
[1756922825429,0.00811475,112650.0,112640.0,0.8225128]
[1756922825892,0.00811475,112650.0,112640.0,0.8246728]
[1756922826306,0.00312475,112650.0,112640.0,1.30210243]
[1756922826512,0.00312475,112650.0,112640.0,1.30507243]
[1756922826723,0.00312475,112650.0,112640.0,1.30210243]
[1756922827144,0.00811475,112650.0,112640.0,0.8246728]
[1756922827492,0.00312475,112650.0,112640.0,0.8246728]
[1756922828306,0.00312475,112650.0,112640.0,0.88846765]
[1756922829374,0.00825475,112650.0,112640.0,0.88846765]
[1756922829601,0.00825475,112650.0,112640.0,0.73842765]
[1756922829811,0.00825475,112650.0,112640.0,0.88846765]
[1756922830548,0.00312475,112650.0,112640.0,0.88846765]
[1756922830753,0.00825475,112650.0,112640.0,0.88846765]
[1756922830953,0.00825475,112650.0,112640.0,0.73842765]
[1756922831157,0.66322543,112650.0,112640.0,0.88630765]
[1756922831363,0.48568438,112650.0,112640.0,0.88630765]
[1756922831560,0.00825475,112650.0,112640.0,0.88630765]
[1756922831764,0.01050796,112650.0,112640.0,0.88630765]
[1756922831970,0.00825475,112650.0,112640.0,0.48630765]
[1756922833639,0.01050796,112650.0,112640.0,0.48630765]
[1756922834184,0.48793759,112650.0,112640.0,0.33626765]
[1756922834414,0.48568438,112650.0,112640.0,0.48626765]
[1756922834618,0.00825475,112650.0,112640.0,0.48626765]
[1756922834797,0.01050796,112650.0,112640.0,0.48626765]
[1756922836051,0.01050796,112650.0,112640.0,0.88626765]
[1756922837013,0.00312475,112650.0,112640.0,0.88825765]
[1756922838906,0.00312475,112650.0,112640.0,1.36861728]
[1756922839315,0.00312475,112650.0,112640.0,1.32576125]
[1756922839526,0.00312475,112650.0,112640.0,1.40550481]
[1756922839946,0.0002,112670.0,112660.0,0.17752529]
[1756922840146,0.00066834,112670.0,112660.0,0.96732997]
[1756922840324,0.00066834,112670.0,112660.0,0.96710091]
[1756922840525,0.00066834,112670.0,112660.0,1.03384398]
[1756922840830,0.00066834,112670.0,112660.0,1.43384398]
[1756922841278,0.00166834,112670.0,112660.0,1.43484398]
[1756922841442,0.00666834,112670.0,112660.0,1.43484398]
[1756922841843,0.00666834,112670.0,112660.0,1.4557828]
[1756922842099,0.00666834,112670.0,112660.0,1.77191286]
[1756922842304,0.00566834,112670.0,112660.0,1.85172907]
[1756922843318,0.00066834,112670.0,112660.0,1.85172907]
[1756922843525,0.00066834,112670.0,112660.0,2.08952794]
[1756922843752,0.00066834,112670.0,112660.0,2.09052794]
[1756922845468,0.00066834,112670.0,112660.0,2.01071173]
[1756922846100,0.00066834,112670.0,112660.0,1.86071173]
[1756922846303,0.00066834,112670.0,112660.0,2.01067173]
[1756922848006,0.00066834,112670.0,112660.0,1.50016748]
[1756922848208,0.00579834,112670.0,112660.0,1.71176263]
[1756922848406,0.00579834,112670.0,112660.0,1.71375263]
[1756922849220,0.00066834,112670.0,112660.0,1.71375263]
[1756922851036,0.00066834,112670.0,112660.0,2.07136688]
[1756922851327,0.00066834,112670.0,112660.0,2.07429688]
[1756922853705,0.00066834,112670.0,112660.0,2.09048794]
[1756922854256,0.00066834,112670.0,112660.0,2.09404453]
[1756922855944,0.00066834,112670.0,112660.0,2.09107453]
[1756922856394,0.00066834,112670.0,112660.0,2.01125832]
[1756922860067,0.00066834,112670.0,112660.0,1.14610982]
[1756922860068,0.00264834,112670.0,112660.0,1.14610982]
[1756922860226,0.00571834,112670.0,112660.0,1.23315787]
[1756922860450,0.00571834,112670.0,112660.0,1.65438192]
[1756922861185,0.00571834,112670.0,112660.0,2.01395617]
[1756922861512,0.00066834,112670.0,112660.0,2.03489499]
[1756922862094,0.00066834,112670.0,112660.0,2.07571792]
[1756922862455,0.00066834,112670.0,112660.0,2.01210812]
[1756922865717,0.00066834,112670.0,112660.0,2.09192433]
[1756922866300,0.00066834,112670.0,112660.0,1.94200433]
[1756922866528,0.00571834,112670.0,112660.0,1.94004433]
[1756922866700,0.00571834,112670.0,112660.0,2.09192433]
[1756922866906,0.00571834,112670.0,112660.0,1.73235008]
[1756922867651,0.00571834,112670.0,112660.0,1.73431008]
[1756922867858,0.00264834,112670.0,112660.0,2.09192433]
[1756922868299,0.00571834,112670.0,112660.0,2.09192433]
[1756922868703,0.00571834,112670.0,112660.0,2.08996433]
[1756922869072,0.00065389,112670.0,112660.0,1.94200433]
[1756922869279,0.0002,112680.0,112670.0,0.17750954]
[1756922869503,0.0002831,112680.0,112670.0,0.77691978]
[1756922869826,0.0022631,112680.0,112670.0,0.77691978]
[1756922869989,0.0022631,112680.0,112670.0,1.17691978]
[1756922870490,0.0042631,112680.0,112670.0,1.17691978]
[1756922871273,0.0073331,112680.0,112670.0,1.17691978]
[1756922871497,0.0073331,112680.0,112670.0,1.25673599]
[1756922871699,0.0022831,112680.0,112670.0,1.25869599]
[1756922871907,0.0042631,112680.0,112670.0,1.25869599]
[1756922872159,0.0073331,112680.0,112670.0,1.25673599]
[1756922872363,0.0042631,112680.0,112670.0,1.25673599]
[1756922872577,0.0042631,112680.0,112670.0,1.26185599]
[1756922872774,0.0042631,112680.0,112670.0,1.25869599]
[1756922872978,0.0042631,112680.0,112670.0,1.10685599]
[1756922873181,0.0073331,112680.0,112670.0,1.10685599]
[1756922873388,0.0073331,112680.0,112670.0,1.25673599]
[1756922874033,0.0042631,112680.0,112670.0,1.25673599]
[1756922874277,0.0042631,112680.0,112670.0,1.25869599]
[1756922874513,0.0073331,112680.0,112670.0,1.25673599]
[1756922874736,0.0042631,112680.0,112670.0,1.25869599]
[1756922874954,0.0042631,112680.0,112670.0,1.26185599]
[1756922876196,0.0042631,112680.0,112670.0,1.25869599]
[1756922876678,0.0073331,112680.0,112670.0,0.74924174]
[1756922876877,0.36494735,112680.0,112670.0,0.89912174]
[1756922877085,0.17750954,112670.0,112660.0,0.1516128]
[1756922877287,0.542427,112670.0,112660.0,0.22407138]
[1756922877490,0.54017379,112670.0,112660.0,0.55147667]
[1756922877906,0.54017379,112670.0,112660.0,0.21812]
[1756922878822,0.54017379,112670.0,112660.0,0.39564529]
[1756922879258,0.54017379,112670.0,112660.0,0.39664529]
[1756922879680,0.54017379,112670.0,112660.0,0.21912]
[1756922879885,0.54017379,112670.0,112660.0,0.39664529]
[1756922880851,0.54017379,112670.0,112660.0,0.21912]
[1756922880994,0.54017379,112670.0,112660.0,0.39664529]
[1756922881725,0.89778804,112670.0,112660.0,0.001]
[1756922881921,1.26031804,112670.0,112660.0,0.001]
[1756922882121,1.26031804,112670.0,112660.0,0.15088]
[1756922885085,1.70984828,112670.0,112660.0,0.001]
[1756922885306,1.35223403,112670.0,112660.0,0.001]
[1756922885506,1.41874099,112670.0,112660.0,0.001]
[1756922885714,1.56862099,112670.0,112660.0,0.001]
[1756922885915,0.17752529,112660.0,112650.0,0.14988]
[1756922886122,0.1817585,112660.0,112650.0,0.32938105]
[1756922886337,0.53937275,112660.0,112650.0,0.32938105]
[1756922886651,0.5492706,112670.0,112660.0,0.17752529]
[1756922886797,0.87910751,112670.0,112660.0,0.17752529]
[1756922887442,0.17752529,112660.0,112650.0,0.32742105]
[1756922887644,0.898077,112660.0,112650.0,0.14988]
[1756922887847,0.89780379,112660.0,112650.0,0.14988]
[1756922888090,0.89780379,112660.0,112650.0,0.32742105]
[1756922888291,0.89473379,112660.0,112650.0,0.32742105]
[1756922888498,0.89473379,112660.0,112650.0,0.32938105]
[1756922888720,0.53145873,112670.0,112660.0,0.17752529]
[1756922888721,0.51751298,112670.0,112660.0,0.17752529]
[1756922888927,1.23782148,112670.0,112660.0,0.17752529]
[1756922889695,1.23473148,112670.0,112660.0,0.17947529]
[1756922889898,0.87711379,112670.0,112660.0,0.17947529]
[1756922890510,0.87711379,112670.0,112660.0,0.17752529]
[1756922890714,1.23781804,112670.0,112660.0,0.17752529]
[1756922890919,0.35961425,112670.0,112660.0,0.18488435]
[1756922891084,0.35961425,112670.0,112660.0,0.18266529]
[1756922892020,0.35761425,112670.0,112660.0,0.18266529]
[1756922892574,0.35761425,112670.0,112660.0,0.58366529]
[1756922895232,0.0002831,112680.0,112670.0,0.17750954]
[1756922895457,0.35789735,112680.0,112670.0,0.42152439]
[1756922895689,0.35789735,112680.0,112670.0,0.42444553]
[1756922895910,0.35789735,112680.0,112670.0,0.49268553]
[1756922896352,0.35789735,112680.0,112670.0,0.34280553]
[1756922896809,0.35789735,112680.0,112670.0,0.49268553]
[1756922897255,0.35989735,112680.0,112670.0,0.49268553]
[1756922897693,0.0022831,112680.0,112670.0,0.49268553]
[1756922897909,0.7175116,112680.0,112670.0,0.49268553]
[1756922898544,0.35989735,112680.0,112670.0,0.49268553]
[1756922898701,0.35989735,112680.0,112670.0,0.49110635]
[1756922899297,0.0022831,112680.0,112670.0,0.89110635]
[1756922900190,0.35989735,112680.0,112670.0,0.74122635]
[1756922900432,0.35989735,112680.0,112670.0,0.89106635]
[1756922902084,0.35989735,112680.0,112670.0,0.74122635]
[1756922902224,0.35989735,112680.0,112670.0,0.89106635]
[1756922903488,0.0022831,112680.0,112670.0,0.89106635]
[1756922908319,0.0022831,112680.0,112670.0,0.74122635]
[1756922908544,0.48119209,112680.0,112670.0,0.88787635]
[1756922908767,0.47920209,112680.0,112670.0,0.89106635]
[1756922909034,0.48119209,112680.0,112670.0,0.89106635]
[1756922909297,0.47920209,112680.0,112670.0,0.89106635]
[1756922909827,0.0042731,112680.0,112670.0,0.89102635]
[1756922910044,0.0022831,112680.0,112670.0,0.89102635]
[1756922911322,0.0022831,112680.0,112670.0,0.74122635]
[1756922911560,0.0022831,112680.0,112670.0,0.89102635]
[1756922914334,0.0042731,112680.0,112670.0,0.74122635]
[1756922914612,0.48119209,112680.0,112670.0,0.89102635]
[1756922914871,0.0042731,112680.0,112670.0,0.89102635]
[1756922915071,0.47920209,112680.0,112670.0,0.89102635]
[1756922915991,0.48428209,112680.0,112670.0,0.88588635]
[1756922916215,0.17750954,112670.0,112660.0,0.06391539]
[1756922916417,0.4822622,112670.0,112660.0,0.15192]
[1756922916636,0.65950853,112670.0,112660.0,0.15192]
[1756922917469,0.65950853,112670.0,112660.0,0.15212]
[1756922917665,0.65950853,112670.0,112660.0,0.33064529]
[1756922918579,0.65950853,112670.0,112660.0,0.15312]
[1756922919263,0.18258954,112670.0,112660.0,0.001]
[1756922919494,0.65950853,112670.0,112660.0,0.15304]
[1756922919729,0.68264853,112670.0,112660.0,0.15304]
[1756922919987,0.68264853,112670.0,112660.0,0.15308]
[1756922920211,0.70933428,112670.0,112660.0,0.15308]
[1756922920850,1.29533027,112670.0,112660.0,0.001]
[1756922921147,0.17754105,112650.0,112640.0,0.06824]
[1756922921362,0.65873325,112650.0,112640.0,0.06824]
[1756922921581,0.65970004,112650.0,112640.0,0.06824]
[1756922921992,0.65970004,112650.0,112640.0,0.22032]
[1756922922205,0.65970004,112650.0,112640.0,0.39787681]
[1756922922408,0.65970004,112650.0,112640.0,0.06824]
[1756922922610,0.65970004,112650.0,112640.0,0.22028]
[1756922923123,0.65970004,112650.0,112640.0,0.22428]
[1756922924573,0.65970004,112650.0,112640.0,0.004]
[1756922924748,0.65970004,112650.0,112640.0,0.15604]
[1756922925213,0.66842288,112650.0,112640.0,0.15604]
[1756922925402,0.66842288,112650.0,112640.0,0.15404]
[1756922925771,0.66842288,112650.0,112640.0,0.15504]
[1756922925970,0.66842288,112650.0,112640.0,0.33259681]
[1756922926172,0.66842288,112650.0,112640.0,0.33059681]
[1756922927194,0.47691899,112650.0,112640.0,0.33585681]
[1756922927400,0.65446004,112650.0,112640.0,0.33585681]
[1756922927636,0.66533915,112650.0,112640.0,0.33585681]
[1756922928232,0.20744757,112660.0,112640.0,0.33585681]
[1756922928233,0.20744757,112660.0,112650.0,0.17754105]
[1756922928431,0.17754105,112650.0,112640.0,0.33371681]
[1756922928640,0.4811922,112650.0,112640.0,0.73585681]
[1756922928864,0.65648004,112650.0,112640.0,0.73585681]
[1756922929066,0.65648004,112650.0,112640.0,0.73485681]
[1756922929446,0.65648004,112650.0,112640.0,0.73173681]
[1756922930032,0.66532846,112650.0,112640.0,0.73173681]
[1756922930827,0.66532846,112650.0,112640.0,0.33173681]
[1756922931021,0.66854846,112650.0,112640.0,0.32959681]
[1756922931287,0.66854846,112650.0,112640.0,0.15304]
[1756922931482,0.66854846,112650.0,112640.0,0.33059681]
[1756922931840,0.66854846,112650.0,112640.0,0.15304]
[1756922932242,0.66854846,112650.0,112640.0,0.001]
[1756922932703,1.48546745,112650.0,112640.0,0.001]
[1756922932940,1.63714745,112650.0,112640.0,0.001]
[1756922933142,1.68697783,112650.0,112640.0,0.001]
[1756922933538,1.21005884,112650.0,112640.0,0.001]
[1756922934266,0.17755681,112640.0,112630.0,0.15172]
[1756922934461,1.138888,112640.0,112630.0,0.15172]
[1756922934670,0.17757258,112630.0,112620.0,0.46824]
[1756922934866,0.18506579,112630.0,112620.0,0.21992]
[1756922935095,0.65973157,112630.0,112620.0,0.24582835]
[1756922935295,0.65973157,112630.0,112620.0,0.79750835]
[1756922935518,0.65973157,112630.0,112620.0,0.79797669]
[1756922935635,0.65973157,112630.0,112620.0,0.39797669]
[1756922935836,0.65973157,112630.0,112620.0,0.22038834]
[1756922936665,0.65973157,112630.0,112620.0,0.39997669]
[1756922937483,0.65973157,112630.0,112620.0,0.40197669]
[1756922937685,0.65651157,112630.0,112620.0,0.40411669]
[1756922938233,0.17959258,112630.0,112620.0,0.40411669]
[1756922938394,0.65876478,112630.0,112620.0,0.40411669]
[1756922938605,0.65651157,112630.0,112620.0,0.40411669]
[1756922940436,0.65651157,112630.0,112620.0,0.40723669]
[1756922941000,0.65651157,112630.0,112620.0,0.40411669]
[1756922942432,0.47893899,112630.0,112620.0,0.40411669]
[1756922942644,0.17959258,112630.0,112620.0,0.40723669]
[1756922942859,0.65876478,112630.0,112620.0,0.40723669]
[1756922942999,0.47893899,112630.0,112620.0,0.40723669]
[1756922943210,0.65449157,112630.0,112620.0,0.40723669]
[1756922944068,0.65651157,112630.0,112620.0,0.22438834]
[1756922944280,0.65973157,112630.0,112620.0,0.22438834]
[1756922944818,0.65973157,112630.0,112620.0,0.40197669]
[1756922945463,0.65973157,112630.0,112620.0,0.22438834]
[1756922945670,0.65973157,112630.0,112620.0,0.40197669]
[1756922946417,0.65973157,112630.0,112620.0,0.22438834]
[1756922946642,0.65973157,112630.0,112620.0,0.40197669]
[1756922946851,0.65651157,112630.0,112620.0,0.80411669]
[1756922947784,0.17959258,112630.0,112620.0,0.80411669]
[1756922947985,0.65876478,112630.0,112620.0,0.80723669]
[1756922948169,0.65651157,112630.0,112620.0,0.80723669]
[1756922948364,0.17959258,112630.0,112620.0,0.80723669]
[1756922948568,0.18184579,112630.0,112620.0,0.80723669]
[1756922949144,0.17982579,112630.0,112620.0,0.80723669]
[1756922949344,0.18192579,112630.0,112620.0,0.80723669]
[1756922949903,0.65884478,112630.0,112620.0,0.58731669]
[1756922950074,0.65659157,112630.0,112620.0,0.73871669]
[1756922952462,0.65659157,112630.0,112620.0,0.55586834]
[1756922952637,0.65971157,112630.0,112620.0,0.73345669]
[1756922952847,0.65971157,112630.0,112620.0,0.33345669]
[1756922953185,0.65659157,112630.0,112620.0,0.33547669]
[1756922953711,0.65659157,112630.0,112620.0,0.33855669]
[1756922954477,0.68428848,112640.0,112620.0,0.33855669]
[1756922954618,0.68116848,112640.0,112630.0,0.00308]
[1756922954819,0.68326848,112640.0,112630.0,0.18267258]
[1756922955023,0.17755681,112640.0,112630.0,0.18267258]
[1756922955260,0.17981002,112640.0,112630.0,0.18267258]
[1756922955465,0.18191002,112640.0,112630.0,0.18267258]
[1756922955946,0.17981002,112640.0,112630.0,0.18267258]
[1756922956446,0.17981002,112640.0,112630.0,0.18367258]
[1756922956775,0.17981002,112640.0,112630.0,0.58367258]
[1756922957635,0.17981002,112640.0,112630.0,0.18367258]
[1756922957935,0.55308724,112650.0,112640.0,0.17755681]
[1756922958141,0.18641535,112660.0,112640.0,0.33373681]
[1756922958343,0.17754105,112650.0,112640.0,0.33373681]
[1756922958905,0.17754105,112650.0,112640.0,0.73373681]
[1756922959155,0.17754105,112650.0,112640.0,0.58265681]
[1756922959380,0.002,112650.0,112640.0,0.73373681]
[1756922960823,0.00425321,112650.0,112640.0,0.73373681]
[1756922961616,0.002,112650.0,112640.0,1.30257179]
[1756922961932,0.002,112650.0,112640.0,1.35015119]
[1756922962162,0.002,112650.0,112640.0,1.41381516]
[1756922962681,0.002,112650.0,112640.0,1.35015119]
[1756922962910,0.002,112650.0,112640.0,1.3590313]
[1756922963114,0.002,112650.0,112640.0,1.42265998]
[1756922963519,0.002,112650.0,112640.0,1.66122301]
[1756922964658,0.002,112650.0,112640.0,1.51018301]
[1756922964858,0.002,112650.0,112640.0,1.66118301]
[1756922965313,0.53543488,112680.0,112670.0,0.17750954]
[1756922965508,0.53753488,112680.0,112670.0,0.32846954]
[1756922965710,0.54065488,112680.0,112670.0,0.32846954]
[1756922966155,0.54065488,112680.0,112670.0,0.72846954]
[1756922966870,0.54065488,112680.0,112670.0,0.57750954]
[1756922967097,0.54065488,112680.0,112670.0,0.72842954]
[1756922967431,0.54065479,112680.0,112670.0,0.72842954]
[1756922967634,0.0023,112680.0,112670.0,0.73044954]
[1756922967836,0.0023,112680.0,112670.0,0.73352954]
[1756922968026,0.36204101,112680.0,112670.0,0.73352954]
[1756922968210,0.53953479,112680.0,112670.0,0.58260954]
[1756922968415,0.54265479,112680.0,112670.0,0.72834954]
[1756922969323,0.36516101,112680.0,112670.0,0.32834954]
[1756922969476,0.53953479,112680.0,112670.0,0.33036954]
[1756922969646,0.53953479,112680.0,112670.0,0.73036954]
[1756922969846,0.0022,112680.0,112670.0,0.67452553]
[1756922970149,0.0022,112680.0,112670.0,1.18302654]
[1756922970591,0.0022,112680.0,112670.0,0.82528553]
[1756922971416,0.0022,112680.0,112670.0,0.82524553]
[1756922971958,0.0022,112680.0,112670.0,1.18298654]
[1756922972197,0.0022,112680.0,112670.0,1.03226654]
[1756922972398,0.0022,112680.0,112670.0,1.0589423]
[1756922972547,0.0022,112680.0,112670.0,1.2097023]
[1756922973554,0.0022,112680.0,112670.0,1.21840396]
[1756922974201,0.0022,112680.0,112670.0,1.2097023]
[1756922975723,0.0022,112680.0,112670.0,0.70120129]
[1756922975926,0.0043,112680.0,112670.0,0.84876129]
[1756922976136,0.0022,112680.0,112670.0,0.85184129]
[1756922976471,0.0043,112680.0,112670.0,0.85184129]
[1756922976882,0.0043,112680.0,112670.0,0.82516553]
[1756922977080,0.0022,112680.0,112670.0,0.82516553]
[1756922978306,0.53953479,112680.0,112670.0,0.49393599]
[1756922978508,0.54265479,112680.0,112670.0,0.82006553]
[1756922978673,0.36516101,112680.0,112670.0,0.82006553]
[1756922978872,0.54265479,112680.0,112670.0,0.82006553]
[1756922979518,0.36516101,112680.0,112670.0,0.82006553]
[1756922979723,0.53953479,112680.0,112670.0,0.82208553]
[1756922979922,0.53953479,112680.0,112670.0,0.82006553]
[1756922980102,0.54274479,112680.0,112670.0,0.82006553]
[1756922980485,0.54274479,112680.0,112670.0,0.4]
[1756922980692,0.54274479,112680.0,112670.0,0.55052]
[1756922980890,0.54274479,112680.0,112670.0,0.72802954]
[1756922981088,0.18500378,112680.0,112670.0,0.72802954]
[1756922981363,0.54274479,112680.0,112670.0,0.72802954]
[1756922982545,0.36204101,112680.0,112670.0,0.73004954]
[1756922982745,0.0022,112680.0,112670.0,0.73318954]
[1756922982997,0.00445321,112680.0,112670.0,0.73318954]
[1756922983563,0.00445321,112680.0,112670.0,0.33318954]
[1756922984154,0.0022,112680.0,112670.0,0.73318954]
[1756922986186,0.00445321,112680.0,112670.0,0.73318954]
[1756922986473,0.0022,112680.0,112670.0,0.73318954]
[1756922986840,0.00445321,112680.0,112670.0,0.73318954]
[1756922987040,0.00445321,112680.0,112670.0,0.33318954]
[1756922987712,0.00445321,112680.0,112670.0,0.73318954]
[1756922987939,0.0022,112680.0,112670.0,0.73318954]
[1756922988638,0.00445321,112680.0,112670.0,0.73318954]
[1756922989770,0.00647321,112680.0,112670.0,0.73318954]
[1756922989943,0.18396699,112680.0,112670.0,0.73004954]
[1756922990145,0.18492378,112680.0,112670.0,0.57952954]
[1756922990298,0.18492378,112680.0,112670.0,0.72976954]
[1756922990717,0.18492378,112680.0,112670.0,0.32976954]
[1756922991218,0.36517101,112680.0,112670.0,0.79339822]
[1756922991402,0.36196101,112680.0,112670.0,0.79339822]
[1756922991527,0.00422,112680.0,112670.0,0.79339822]
[1756922991740,0.36219422,112680.0,112670.0,0.79653822]
[1756922991954,0.35994101,112680.0,112670.0,0.79653822]
[1756922992160,0.0022,112680.0,112670.0,0.79653822]
[1756922992410,0.00445321,112680.0,112670.0,0.79653822]
[1756922992865,0.0022,112680.0,112670.0,0.79653822]
[1756922993084,0.0022,112680.0,112670.0,1.15427923]
[1756922994374,0.0022,112680.0,112670.0,1.24619522]
[1756922994755,0.0022,112680.0,112670.0,0.88845421]
[1756922994977,0.0022,112680.0,112670.0,1.24619522]
[1756922999730,0.0022,112680.0,112670.0,1.24603522]
[1756922999950,0.0022,112680.0,112670.0,0.88829421]
[1756923000181,0.0022,112680.0,112670.0,0.73821421]
[1756923000417,0.00743,112680.0,112670.0,0.73305421]
[1756923000882,0.00422,112680.0,112670.0,0.88515421]
[1756923001139,0.00422,112680.0,112670.0,0.88829421]
[1756923001631,0.0022,112680.0,112670.0,0.88829421]
[1756923002368,0.00422,112680.0,112670.0,0.88829421]
[1756923002602,0.54266479,112680.0,112670.0,0.88313421]
[1756923004160,0.54266479,112680.0,112670.0,0.39121822]
[1756923004606,0.54266479,112680.0,112670.0,0.79121822]
[1756923005255,0.36517101,112680.0,112670.0,0.79121822]
[1756923005463,0.54266479,112680.0,112670.0,0.79121822]
[1756923006291,0.54266479,112680.0,112670.0,0.64113822]
[1756923006502,0.9004058,112680.0,112670.0,0.06362868]
[1756923006716,0.9004058,112680.0,112660.0,0.13186868]
[1756923006717,0.17750954,112670.0,112660.0,0.13186868]
[1756923006926,0.54273376,112670.0,112660.0,0.21832]
[1756923007134,0.18273954,112670.0,112660.0,0.39584529]
[1756923007344,0.54048055,112670.0,112660.0,0.24576529]
[1756923007572,0.54048055,112670.0,112660.0,0.39584529]
[1756923007808,0.54048055,112670.0,112660.0,0.06824]
[1756923008271,0.54048055,112670.0,112660.0,0.21832]
[1756923008706,0.54048055,112670.0,112660.0,0.06824]
[1756923008920,0.54048055,112670.0,112660.0,0.21832]
[1756923009146,0.18273954,112670.0,112660.0,0.21932]
[1756923009352,0.54048055,112670.0,112660.0,0.21932]
[1756923009760,0.17952954,112670.0,112660.0,0.40184529]
[1756923009968,0.17750954,112670.0,112660.0,0.40184529]
[1756923010306,0.53844479,112680.0,112660.0,0.40184529]
[1756923010514,0.17750954,112670.0,112660.0,0.40184529]
[1756923010935,0.53844479,112680.0,112660.0,0.40184529]
[1756923011137,0.53543479,112680.0,112660.0,0.40184529]
[1756923011337,0.53543479,112680.0,112660.0,0.80184529]
[1756923011820,0.53844479,112680.0,112660.0,0.80184529]
[1756923012523,0.53844479,112680.0,112660.0,0.80084529]
[1756923013331,0.54044479,112680.0,112660.0,0.80084529]
[1756923013538,0.17750954,112670.0,112660.0,0.80084529]